[Event "French-ch U12-U14 2024"]
[Site "Agen"]
[Date "2024.04.20"]
[Round "8.17"]
[White "Bonelli Maestracci, Pierre Joseph"]
[Black "Negre, Emilie"]
[Result "1/2-1/2"]
[ECO "C63"]
[WhiteElo "2044"]
[BlackElo "1922"]
[Annotator "TA"]
[PlyCount "158"]
[EventDate "2024.04.14"]
[EventType "swiss"]
[EventCountry "FRA"]
[SourceTitle "playchess.com"]
[Source "ChessBase"]
[SourceQuality "1"]
[TimeControl "5400+30"]

{[%evp 9,158,43,42,-6,14,16,34,-26,-29,-27,-24,-43,-38,-96,-54,-57,-52,-87,-62,-135,-63,-101,-33,-48,-41,-38,0,-53,-31,-19,-24,-32,0,-57,-8,-47,-22,-22,0,0,0,-167,-154,-239,-8,-19,-16,-118,-12,-2,0,0,0,0,0,0,16,0,102,0,0,0,8,8,7,5,5,-1,0,-4,0,0,27,27,22,12,350,0,0,0,0,0,0,0,0,0,0,0,0,0,0,0,0,0,0,0,0,0,0,0,0,0,0,0,0,0,0,-7,0,0,8,8,621,0,0,0,0,0,0,0,0,0,0,0,0,0,0,0,0,0,0,0,0,0,0,0,0,-8,0,0,0,0,0,0,0,0,0,0,0,-8,0]} 1. e4 {[%emt 0:00:04]} e5 {[%emt 0:00:10]} 2. Nf3 {[%emt 0:00:13]} Nc6 {[%emt 0:00:09]} 3. Bb5 {[%emt 0:00:05]} f5 {[%emt 0:00:13]} 4. d3 {[%emt 0:08:15]} fxe4 {[%emt 0:00:10]} 5. dxe4 {[%emt 0:00:20]} Nf6 {[%emt 0:00:10]} 6. c3 {[%emt 0:09:42]} (6. Qd3 $14) 6... d6 {[%emt 0:09:14]} 7. O-O {[%emt 0:07:52]} Be7 {[%emt 0:15:54]} 8. Qc2 {[%emt 0:06:42]} ({White should try} 8. Nbd2 $14) 8... O-O $11 {[%emt 0:12:04]} 9. a4 {[%emt 0:09:54]} Qe8 {[%emt 0:05:19]} 10. Re1 {[%emt 0:04:57]} Qg6 {[%emt 0:13:29]} 11. Nfd2 {[%emt 0:05:12]} (11. Bf1 $15) 11... Nh5 {[%emt 0:12:09]} 12. Nf1 {[%emt 0:03:07]} Be6 {[%emt 0:01:08]} 13. Be2 {[%emt 0:13:46]} Nf4 {[%emt 0:06:42]} 14. Bxf4 {[%emt 0:00:43]} ({White should play} 14. Ng3 $1 $15) 14... Rxf4 {[%emt 0:01:38]} (14... exf4 $17 15. f3 d5) 15. Ng3 {[%emt 0:01:36]} Bh4 {[%emt 0:03:50]} ({Better is} 15... Raf8 $17 16. Nd2 Kh8 (16... Rxf2 17. Rf1 $17)) 16. Nd2 {[%emt 0:04:06]} Raf8 {[%emt 0:01:16]} 17. Rf1 {[%emt 0:00:38]} Qf7 {[%emt 0:05:44][%cal Rf4f2]} 18. Nf3 {[%emt 0:05:51]} (18. Nf5 $1 $11) 18... Kh8 {[%emt 0:03:09]} 19. Nxh4 {[%emt 0:01:20]} Rxh4 {[%emt 0:00:07]} 20. b4 {[%emt 0:03:00]} Rf4 {[%emt 0:00:57][%cal Rf4f2]} (20... Rh6 {seems wilder.} 21. Qd1 a5 22. b5 Ne7) 21. Bd3 {[%emt 0:02:17]} (21. Qd2 $11) 21... Ne7 {[%emt 0:01:11]} (21... a5 $15 22. Qd2 axb4 23. cxb4 Nd4) 22. Qe2 {[%emt 0:01:45]} Ng6 {[%emt 0:00:53]} (22... Rh4 {is interesting.} 23. Qe3 Ng6 24. Rfd1 Nf4) 23. Qe3 {[%emt 0:00:53]} a6 {[%emt 0:02:04]} 24. f3 {[%emt 0:03:31]} Rh4 {[%emt 0:00:50][%cal Bf4h4,Bh4h6,Bh6f6][%mdl 32]} 25. Ne2 {[%emt 0:02:45]} (25. Nf5 $11 {and White is okay.} Bxf5 26. exf5) 25... Nf4 $1 $19 {[%emt 0:01:50] White must now prevent ...Qh5.} 26. g3 {[%emt 0:02:12] [#]} (26. Rfe1 $17 {might work better.}) 26... Nh3+ $2 {[%emt 0:00:22]} (26... Qg6 $1 $19 {[%cal Oh4h2] And now ...Rxh2! would win.} 27. Rf2 Nh3+ 28. Kh1 Qh6 (28... Nxf2+ $2 29. Qxf2 Rh6 30. Rf1 $19)) 27. Kh1 $11 {[%emt 0:00:20]} Rh6 {[%emt 0:00:07]} 28. f4 {[%emt 0:00:44] [#]} (28. Ng1 $1 $11) 28... exf4 {[%emt 0:00:36]} (28... Bg4 $1 $17 29. f5 Qh5) 29. Nxf4 {[%emt 0:00:23]} Nxf4 {[%emt 0:00:11]} 30. Rxf4 {[%emt 0:00:05]} Rf6 {[%emt 0:00:10]} 31. Raf1 {[%emt 0:00:22]} Qe7 {[%emt 0:00:26]} 32. Kg1 {[%emt 0:01:13]} Bh3 {[%emt 0:00:42]} 33. R1f2 {[%emt 0:01:56]} Qe5 {[%emt 0:00:37]} (33... h6 $11 {remains equal.}) 34. Bf1 {[%emt 0:00:40]} (34. Rxf6 $16 Rxf6 35. Qa7) 34... Bf5 {[%emt 0:01:06]} 35. Bg2 {[%emt 0:00:28]} (35. Rxf5 Rxf5 36. Rxf5 Rxf5 $19) 35... Bg6 {[%emt 0:00:10]} 36. Rxf6 {[%emt 0:00:29]} Rxf6 {[%emt 0:00:11]} 37. Rxf6 {[%emt 0:00:04]} gxf6 {[%emt 0:00:17][%mdl 4096] Endgame. KQB-KQB} 38. Kf2 {[%emt 0:00:27]} Kg7 {[%emt 0:00:47]} 39. Bf3 {[%emt 0:00:17]} Qe6 {[%emt 0:00:34]} 40. a5 {[%emt 0:00:22]} Qe5 {[%emt 0:00:21]} 41. Qd4 {[%emt 0:00:27]} Bf7 {[%emt 0:02:20]} 42. h4 {[%emt 0:00:53]} (42. Qxe5 {simplifies} fxe5 43. Bg4 Bc4 44. h4) 42... b6 $2 {[%emt 0:01:01][%mdl 8192]} 43. axb6 $2 {[%emt 0:00:21]} (43. Qxe5 $18 {White threatens Qe7 and mate.} dxe5 44. Be2) 43... Qxd4+ {[%emt 0:00:07]} 44. cxd4 {[%emt 0:00:07]} cxb6 $18 {[%emt 0:00:05] KB-KB} 45. Ke3 {[%emt 0:00:20]} Bc4 {[%emt 0:00:58]} 46. Kd2 {[%emt 0:00:10]} Kf7 {[%emt 0:00:18]} 47. Kc3 {[%emt 0:00:33]} Bb5 {[%emt 0:00:08]} 48. Bg4 {[%emt 0:00:12]} Ke7 {[%emt 0:00:17]} 49. Bf5 {[%emt 0:01:06]} h6 {[%emt 0:02:49]} 50. Bh7 {[%emt 0:00:57]} Be2 {[%emt 0:00:00]} 51. Bg8 {[%emt 0:00:28]} Kd7 {[%emt 0:00:00]} 52. Bb3 {[%emt 0:00:45]} Kc6 {[%emt 0:00:11]} 53. Ba4+ {[%emt 0:00:37]} Kc7 {[%emt 0:00:33]} 54. Bb3 {[%emt 0:00:04]} Kc6 {[%emt 0:00:08]} 55. Ba4+ {[%emt 0:00:01]} Kb7 {[%emt 0:00:09]} 56. Bb3 {[%emt 0:00:08]} Kc7 {[%emt 0:00:20]} 57. Be6 {[%emt 0:01:46]} Kc6 {[%emt 0:00:53]} 58. Bb3 {[%emt 0:00:05]} Kb5 {[%emt 0:00:52]} 59. Be6 {[%emt 0:00:57][%cal Re6d7]} Ka4 {[%emt 0:00:48]} 60. g4 {[%emt 0:00:36] Hoping for h5.} a5 $2 {[%emt 0:00:18][%mdl 8192]} (60... Bf3 $11) 61. Bd7+ $2 {[%emt 0:01:11]} (61. bxa5 $18 bxa5 62. Bd7+ Ka3 63. e5 fxe5 (63... dxe5 64. d5 $18) 64. dxe5 dxe5 65. Bf5 (65. g5 hxg5 66. hxg5 Bh5 $11)) 61... b5 $1 $11 {[%emt 0:00:00] The position is equal.} 62. bxa5 {[%emt 0:00:26]} Kxa5 {[%emt 0:00:00]} 63. Be6 {[%emt 0:00:27]} Ka4 {[%emt 0:00:00]} 64. e5 {[%emt 0:00:30]} dxe5 {[%emt 0:00:00]} 65. dxe5 {[%emt 0:00:21]} (65. Kd2 $5 Bf3 $8 66. dxe5 fxe5 67. Ke3 $11) 65... fxe5 {[%emt 0:00:00]} 66. g5 {[%emt 0:00:00]} (66. Kd2 $5 Bf3 $8 67. Ke3 $11) 66... hxg5 {[%emt 0:00:00]} 67. hxg5 {[%emt 0:00:01]} Bh5 {[%emt 0:00:28] Prevents g6} 68. Bf5 {[%emt 0:00:12]} Ka3 {[%emt 0:02:04]} 69. g6 {[%emt 0:00:32]} b4+ {[%emt 0:00:04]} 70. Kc2 {[%emt 0:00:35]} b3+ {[%emt 0:00:22]} 71. Kd2 {[%emt 0:00:52]} Bf3 {[%emt 0:02:52]} 72. g7 {[%emt 0:01:09]} Bd5 {[%emt 0:00:09]} 73. Ke3 {[%emt 0:00:59]} b2 {[%emt 0:00:17]} 74. Bb1 {[%emt 0:00:34]} Kb3 {[%emt 0:00:18]} 75. Kd2 {[%emt 0:00:11]} Bg8 {[%emt 0:01:19]} 76. Kd3 $1 {[%emt 0:00:16]} Bh7+ {[%emt 0:00:38]} 77. Kd2 {[%emt 0:00:05]} Bg8 {[%emt 0:00:32]} (77... Bxb1 78. g8=Q+ (78. g8=R $2 {too greedy.} Be4 $19) 78... Kb4 79. Qf8+ Ka4 80. Qb8 (80. Kc3 Kb5 81. Qf1+ Kc5 82. Qxb1 Kd6 83. Qxb2 Ke6 84. Qb6+ Kf5) 80... Bh7 81. Qxb2 (81. Qxe5 b1=Q $11) 81... Ka5 82. Ke3 (82. Qxe5+ Kb6 83. Qd6+ Kb5 84. Ke3 Bg8 85. Kd4 Bf7 86. Qc5+ Ka6 87. Qc6+ Ka7)) 78. Kd3 {[%emt 0:00:00]} Ka3 {[%emt 0:00:24]} 79. Ke4 {[%emt 0:00:21]} Kb3 {[%emt 0:00:15] Never resign too early!   Weighted Error Value: White=0.34/Black=0.45.  Loses game:     	White=1     	Black=2      Missed win:     	White=2     	Black=1      Mistake:       	White=8     	Black=5      Inaccurate:     	White=3     	Black=4      OK:         	White=20    	Black=22     Best:        	White=2     	Black=2      Strong:       	White=1     	Black=2} 1/2-1/2

[Event "French-ch U12-U14 2024"]
[Site "Agen"]
[Date "2024.04.20"]
[Round "8.18"]
[White "Pon Le Brun, Gregoire"]
[Black "Laignel, Quentin"]
[Result "1/2-1/2"]
[ECO "B13"]
[WhiteElo "1900"]
[BlackElo "2023"]
[Annotator "TA"]
[PlyCount "84"]
[EventDate "2024.04.14"]
[EventType "swiss"]
[EventCountry "FRA"]
[SourceTitle "playchess.com"]
[Source "ChessBase"]
[SourceQuality "1"]
[TimeControl "5400+30"]

{[%evp 11,84,17,13,6,14,23,45,53,50,45,43,36,34,35,54,39,48,21,53,39,53,50,57,25,23,25,19,11,19,17,24,16,32,34,44,33,35,11,28,21,17,0,23,15,15,19,60,0,7,0,1,-15,0,-66,0,-83,0,-9,-17,-42,-25,-56,-52,-70,-63,-71,-68,-98,-51,-72,0,-72,0,-52,0]} 1. e4 {[%emt 0:00:07]} c6 {[%emt 0:00:15]} 2. d4 {[%emt 0:00:26]} d5 {[%emt 0:00:40]} 3. exd5 {[%emt 0:00:28]} cxd5 {[%emt 0:00:19]} 4. Bd3 {[%emt 0:00:34]} Nc6 {[%emt 0:01:48]} 5. c3 {[%emt 0:00:26]} Qc7 {[%emt 0:01:59]} 6. Ne2 {[%emt 0:01:22]} Bg4 {[%emt 0:04:07]} 7. O-O {[%emt 0:02:05]} e6 {[%emt 0:02:28]} 8. Qe1 {[%emt 0:02:16]} Bd6 {[%emt 0:06:54]} 9. f3 {[%emt 0:10:15] White is slightly better.} Bf5 {[%emt 0:04:42]} (9... Bxh2+ $2 {loses.} 10. Kh1 $18) 10. Bxf5 {[%emt 0:00:50]} exf5 {[%emt 0:00:13]} 11. Bf4 {[%emt 0:07:22]} Nge7 {[%emt 0:05:38]} 12. Qg3 {[%emt 0:02:59][%csl LRd6,LRg7]} Bxf4 {[%emt 0:03:25]} 13. Nxf4 {[%emt 0:01:54]} O-O {[%emt 0:03:05]} 14. Nd2 {[%emt 0:06:16][%cal Bb1d2,Bd2b3,Bb3c5][%mdl 32]} Rfd8 {[%emt 0:12:46]} 15. Rf2 {[%emt 0:06:10]} Rac8 {[%emt 0:03:51]} 16. Nb3 {[%emt 0:03:07]} Ng6 {[%emt 0:02:33]} 17. Nxg6 {[%emt 0:04:49]} hxg6 {[%emt 0:00:38]} 18. Qxc7 {[%emt 0:02:46]} Rxc7 {[%emt 0:00:08]} 19. Re1 {[%emt 0:01:40]} g5 {[%emt 0:07:25]} 20. Rfe2 {[%emt 0:03:58]} Kf8 {[%emt 0:00:45]} 21. Nc5 {[%emt 0:02:35]} Ne7 {[%emt 0:04:24]} 22. Nd3 {[%emt 0:05:50]} b6 {[%emt 0:04:14]} 23. Nb4 {[%emt 0:08:49]} Rdd7 {[%emt 0:06:52]} 24. Re5 {[%emt 0:05:20]} Rd6 {[%emt 0:05:07]} 25. Kf2 {[%emt 0:07:28]} f6 {[%emt 0:02:47]} 26. Re6 {[%emt 0:02:41]} Rcd7 {[%emt 0:01:26]} 27. R6e2 {[%emt 0:02:30]} Kf7 {[%emt 0:00:43]} 28. g3 {[%emt 0:09:27]} Rc7 {[%emt 0:02:15]} 29. Na6 {[%emt 0:00:00]} ({White should play} 29. h4 $14) 29... Rb7 $11 {[%emt 0:13:33]} 30. Kg2 {[%emt 0:01:00]} f4 {[%emt 0:00:30]} 31. g4 {[%emt 0:00:00]} Nc6 {[%emt 0:00:00]} 32. Re8 {[%emt 0:00:00]} ({White should try} 32. Rh1 $1 $11) 32... Rd8 {[%emt 0:00:00]} (32... Na5 $1 $15) 33. R8e2 {[%emt 0:00:00]} (33. Rxd8 $11 {keeps the balance.} Nxd8 34. Rh1) 33... Re7 {[%emt 0:00:00]} (33... Rbd7 $17) 34. Rxe7+ {[%emt 0:00:00]} Nxe7 {[%emt 0:00:00][%mdl 4096] Endgame. KRN-KRN} 35. Nc7 {[%emt 0:00:30]} Rd7 {[%emt 0:00:00]} 36. Nb5 {[%emt 0:01:57]} Nc6 {[%emt 0:00:00]} 37. Re2 {[%emt 0:00:26]} Na5 {[%emt 0:00:00]} (37... a6 $5 38. Na3 $8 g6 $17) 38. Na3 {[%emt 0:00:33]} Nb7 {[%emt 0:00:00]} 39. Nb5 {[%emt 0:00:30]} Nd8 {[%emt 0:00:00]} (39... a6 $17 40. Na3 Nd6) 40. Kg1 {[%emt 0:00:33]} Nc6 {[%emt 0:00:00]} 41. Kg2 $1 {[%emt 0:00:28]} Na5 {[%emt 0:01:53]} 42. Na3 $1 {[%emt 0:00:13]} Nc6 {[%emt 0:01:45] Weighted Error Value: White=0.16 (very precise) /Black=0.20 (precise) .  Mistake:       	White=3     	Black=4      Inaccurate:     	White=4     	Black=2      OK:         	White=9     	Black=10     Best:        	White=2     	---        Strong:       	White=2     	---} (42... Rd8 $15) 1/2-1/2

[Event "French-ch U12-U14 2024"]
[Site "Agen"]
[Date "2024.04.20"]
[Round "8.19"]
[White "Boulos, Paul"]
[Black "Breuil, Virgile"]
[Result "0-1"]
[ECO "C91"]
[WhiteElo "2189"]
[BlackElo "2307"]
[Annotator "TA"]
[PlyCount "70"]
[EventDate "2024.04.14"]
[EventType "swiss"]
[EventCountry "FRA"]
[SourceTitle "playchess.com"]
[Source "ChessBase"]
[SourceQuality "1"]
[TimeControl "5400+30"]

{[%evp 23,70,0,16,-8,55,-42,-51,-87,-90,-101,-49,-90,-93,-82,-84,-91,-89,-123,-106,-105,-97,-108,-98,-122,-107,-122,-112,-176,-183,-198,-187,-184,-198,-198,-187,-231,-223,-229,-122,-451,-441,-445,-441,-1439,-921,-1913,-978,-777,-769]} 1. e4 {[%emt 0:00:03]} e5 {[%emt 0:00:20]} 2. Nf3 {[%emt 0:00:28]} Nc6 {[%emt 0:00:27]} 3. Bb5 {[%emt 0:00:43]} a6 {[%emt 0:00:38]} 4. Ba4 {[%emt 0:00:56]} Nf6 {[%emt 0:00:36]} 5. O-O {[%emt 0:00:29]} Be7 {[%emt 0:00:37]} 6. Re1 {[%emt 0:00:44]} b5 {[%emt 0:00:27]} 7. Bb3 {[%emt 0:00:14]} d6 {[%emt 0:00:34]} 8. c3 {[%emt 0:00:36]} O-O {[%emt 0:00:33]} 9. d4 {[%emt 0:00:29]} Bg4 {[%emt 0:09:26]} 10. Be3 {[%emt 0:00:26]} exd4 {[%emt 0:06:11]} 11. cxd4 {[%emt 0:00:38]} Na5 {[%emt 0:01:48]} 12. Bc2 {[%emt 0:01:59]} c5 {[%emt 0:00:53]} 13. Nc3 {[%emt 0:11:24]} Rc8 {[%emt 0:01:49]} (13... Nc4 $11) 14. h3 {[%emt 0:18:28]} (14. e5 $14 Nd7 15. exd6 Bxd6 16. Qd3 (16. Bxh7+ $2 Kxh7 17. h3 Bf5 $19)) 14... Bxf3 $15 {[%emt 0:07:22]} 15. gxf3 {[%emt 0:01:48] Black is slightly better.} Nc4 {[%emt 0:01:28]} 16. dxc5 {[%emt 0:09:55]} Nxe3 {[%emt 0:05:33]} (16... dxc5 $6 17. Bc1 $11) ({Black should play} 16... Nxb2 $17 17. Qe2 Nc4 (17... dxc5 18. e5 $11)) 17. fxe3 {[%emt 0:01:49][%cal Oe4e5]} Rxc5 {[%emt 0:00:32]} (17... dxc5 $6 18. e5 Nd7 19. f4 $11) 18. Bd3 {[%emt 0:06:34]} Rh5 {[%emt 0:09:59]} 19. Bf1 {[%emt 0:03:56]} d5 {[%emt 0:02:51]} 20. exd5 {[%emt 0:06:19]} b4 {[%emt 0:00:34] Black is more active.} 21. Ne4 {[%emt 0:04:14] d6 would now be deadly.} Rxd5 {[%emt 0:03:12]} 22. Nxf6+ {[%emt 0:05:41]} Bxf6 {[%emt 0:00:13]} 23. Qb3 {[%emt 0:02:06][%cal Of3f4] White is weak on the dark squares} Qd6 $36 {[%emt 0:07:18][%mdl 2048] Black has strong initiative.} 24. f4 {[%emt 0:09:31] [#]} Rd8 $1 {[%emt 0:05:27]} 25. Re2 {[%emt 0:03:14]} (25. Rac1 $17 {was worth a try.}) 25... Rd3 $19 {[%emt 0:02:10]} 26. Qc2 {[%emt 0:05:17]} Qb6 {[%emt 0:01:34]} 27. Rae1 {[%emt 0:02:52]} Bh4 {[%emt 0:01:30]} 28. Rc1 {[%emt 0:00:49]} Rxe3 {[%emt 0:01:36]} 29. Qc5 {[%emt 0:00:53]} Qg6+ {[%emt 0:04:14]} 30. Rg2 {[%emt 0:00:45]} Qe4 {[%emt 0:01:10]} (30... Rxh3 $2 {perishes.} 31. Rxg6 Rf3 32. Rg4 (32. Rxa6 g6 $18) 32... Bf2+ 33. Qxf2 Rxf2 34. Kxf2 $18) (30... Qe6 $19 31. Qc4 Qd6 (31... Qxh3 32. Rxg7+ Kxg7 33. Bxh3 $11)) 31. Rc4 $2 {[%emt 0:01:16][%mdl 8192] Loses the game.} (31. Qe5 $17 {was the crucial defense.} Qxe5 32. fxe5) 31... Qf3 {[%emt 0:00:45][%cal Of3f1] ( -> ...Qxf1+!). Black is clearly winning.} 32. Rc1 {[%emt 0:01:20]} Qxf4 {[%emt 0:01:16]} 33. Bxa6 {[%emt 0:00:31]} (33. Qc7 $142 Qh6 34. Rg4) 33... Rg3 {[%emt 0:00:54]} 34. Bf1 {[%emt 0:00:31]} Rxg2+ {[%emt 0:00:14]} 35. Bxg2 {[%emt 0:00:01] [#]} Bf2+ $1 {[%emt 0:23:49][%mdl 512] Weighted Error Value: White=0.91/Black=0.62.  Loses game:     	White=1     	---        Mistake:       	White=3     	Black=3      Inaccurate:     	White=4     	Black=1      OK:         	White=7     	Black=8      Best:        	White=2     	Black=4} 0-1

[Event "French-ch U12-U14 2024"]
[Site "Agen"]
[Date "2024.04.20"]
[Round "8.20"]
[White "Charlier, Antoine"]
[Black "Plaidit, Hugo"]
[Result "0-1"]
[ECO "E60"]
[WhiteElo "2053"]
[BlackElo "1981"]
[Annotator "TA"]
[PlyCount "92"]
[EventDate "2024.04.14"]
[EventType "swiss"]
[EventCountry "FRA"]
[SourceTitle "playchess.com"]
[Source "ChessBase"]
[SourceQuality "1"]
[TimeControl "5400+30"]

{[%evp 9,92,31,26,7,17,11,43,22,15,11,43,41,35,28,32,43,41,17,26,29,15,3,10,14,41,24,29,32,37,46,44,0,27,15,34,20,16,0,14,14,14,10,17,0,262,-37,-31,-59,-30,-39,-42,-40,-21,-57,-44,-43,-54,-45,67,-9,-3,-211,-211,-251,-237,-293,-190,-270,-264,-491,-458,-547,-513,-871,-919,-943,-911,-1652,-1818,-1899,-1726,-2407,-2141,-29987,-29988]} 1. d4 {[%emt 0:00:02]} Nf6 {[%emt 0:00:09]} 2. c4 {[%emt 0:00:17]} g6 {[%emt 0:00:05]} 3. h4 {[%emt 0:00:22]} Bg7 {[%emt 0:00:50]} 4. Nc3 {[%emt 0:00:12]} d6 {[%emt 0:00:08]} 5. e4 {[%emt 0:00:28]} Nc6 {[%emt 0:00:41]} 6. Nf3 {[%emt 0:03:09]} Bg4 {[%emt 0:07:12]} 7. Be2 {[%emt 0:00:23]} h5 {[%emt 0:07:43]} 8. Bg5 {[%emt 0:04:34] White is slightly better.} Nd7 {[%emt 0:12:26][%cal Bf6d7,Bd7e5,Be5g4][%mdl 32]} 9. d5 {[%emt 0:01:30]} Nce5 {[%emt 0:02:45]} 10. Qd2 {[%emt 0:03:01]} c6 {[%emt 1:03:31]} 11. Nxe5 {[%emt 0:22:58]} Nxe5 {[%emt 0:00:00]} 12. f3 {[%emt 0:01:28]} Bd7 {[%emt 0:00:00]} 13. Be3 {[%emt 0:00:59]} Qa5 {[%emt 0:00:00]} 14. f4 {[%emt 0:58:07]} Ng4 {[%emt 0:00:00]} 15. Bd4 {[%emt 0:00:00]} Bxd4 {[%emt 0:00:00]} 16. Qxd4 {[%emt 0:00:00][%cal Rd4h8] [#]} O-O {[%emt 0:00:00]} 17. Bxg4 {[%emt 0:00:00]} Bxg4 {[%emt 0:00:00]} 18. O-O {[%emt 0:00:00][%cal Bh1f1,Bf1f2,Bf2f6][%mdl 32]} Qb6 {[%emt 0:00:00]} 19. Qxb6 {[%emt 0:00:00]} axb6 {[%emt 0:00:00]} 20. g3 {[%emt 0:00:00]} Rfe8 {[%emt 0:00:00]} 21. Rf2 {[%emt 0:00:00]} e5 {[%emt 0:00:00]} 22. fxe5 {[%emt 0:00:00]} Rxe5 {[%emt 0:00:00]} 23. Rf6 {[%emt 0:00:00]} Rd8 {[%emt 0:00:00][%cal Og4f5]} 24. Raf1 {[%emt 0:00:00]} Rd7 {[%emt 0:00:00]} 25. R6f4 {[%emt 0:00:00]} Kg7 {[%emt 0:00:00]} 26. Na4 {[%emt 0:00:00]} b5 {[%emt 0:00:00][%mdl 8192]} (26... Rde7 $11) 27. cxb5 $2 {[%emt 0:00:00]} (27. Nb6 $18 Rd8 28. Rxf7+ Kh8 29. Rxb7) 27... cxb5 $15 {[%emt 0:00:00]} 28. Nc3 {[%emt 0:00:00][%cal Oa2a3]} b4 {[%emt 0:00:00]} 29. Nb1 {[%emt 0:00:00]} Rde7 {[%emt 0:00:00]} 30. Nd2 {[%emt 0:00:00]} Be2 {[%emt 0:00:00] Dodges Nc4} 31. Re1 {[%emt 0:00:00]} Bd3 $36 {[%emt 0:00:00][%mdl 2048] ...Rxd5 would now be deadly. Black is more active.} 32. Re3 {[%emt 0:00:00]} Bc2 {[%emt 0:00:00]} (32... Rxd5 33. Rff3 Bxe4 34. Rxe4 $16) 33. Kf2 {[%emt 0:00:22]} f5 {[%emt 0:01:24]} (33... f6 $15) 34. Nc4 {[%emt 0:00:36]} (34. exf5 $1 $14 Bxf5 35. Rxe5 Rxe5 36. Rxb4) 34... Rxe4 $11 {[%emt 0:00:55]} 35. Rfxe4 {[%emt 0:00:27] Loses the game.} (35. Rexe4 $11 {and White has nothing to worry.} Bxe4 36. Nxd6) 35... fxe4 $19 {[%emt 0:03:11]} 36. Nxd6 $11 {[%emt 0:00:30][%mdl 4096] Endgame. KRB-KRN} Bd3 {[%emt 0:00:14] And now ...Kf6 would win.} 37. Nc8 {[%emt 0:00:55]} Rd7 {[%emt 0:01:25]} 38. Nb6 {[%emt 0:03:08]} (38. g4 {might work better.}) 38... Rd6 $19 {[%emt 0:00:07]} 39. Na4 {[%emt 0:01:45]} (39. Nc8 {is the only way for White.} Rxd5 40. Re1) 39... Rxd5 {[%emt 0:00:06]} 40. b3 {[%emt 0:01:24]} Kf6 {[%emt 0:00:48]} 41. Nb2 {[%emt 0:01:11]} (41. Re1 $142) 41... Ke5 {[%emt 0:01:13]} 42. Re1 {[%emt 0:00:59]} Kd4 {[%emt 0:00:24]} 43. Rd1 {[%emt 0:02:06]} Kc3 {[%emt 0:01:45]} 44. Na4+ {[%emt 0:00:41]} Kc2 {[%emt 0:00:07]} 45. Re1 {[%emt 0:00:14]} Kd2 {[%emt 0:00:17] [#] ( -> ...Rf5+)} 46. Rg1 {[%emt 0:00:58]} e3+ {[%emt 0:00:07] Weighted Error Value: White=0.82/Black=0.28 (precise) .  Loses game:     	White=1     	Black=1      Missed win:     	White=1     	---        Mistake:       	White=4     	Black=1      Inaccurate:     	White=2     	Black=5      OK:         	White=12    	Black=10     Best:        	White=1     	Black=3} 0-1